[Event "Championnat d'Europe de Blitz"]
[Date "2024.12.09"]
[White "Kiratzopoulos, Efthimios"]
[Black "Herega, Nejc"]
[WhiteElo "2193"]
[BlackElo "2249"]
[Round "11.53"]
[Result "1-0"]
[TimeControl "180+2"]

1. d4 {[%clk 00:03:02]} Nf6 {[%emt 00:00:01] [%clk 00:03:03]} 2. Nf3 {[%emt
00:00:01] [%clk 00:03:03]} g6 {[%emt 00:00:02] [%clk 00:03:03]} 3. Nc3 {[%emt
00:00:01] [%clk 00:03:04]} d5 {[%emt 00:00:01] [%clk 00:03:04]} 4. Bf4 {[%emt
00:00:02] [%clk 00:03:04]} Bg7 {[%emt 00:00:03] [%clk 00:03:03]} 5. e3 {[%emt
00:00:03] [%clk 00:03:03]} O-O {[%emt 00:00:06] [%clk 00:02:59]} 6. Bd3 {[%clk
00:03:04]} c5 {[%emt 00:00:05] [%clk 00:02:56]} 7. dxc5 {[%emt 00:00:07] [%clk
00:02:59]} Nbd7 {[%emt 00:00:41] [%clk 00:02:18]} 8. O-O {[%emt 00:00:20] [%clk
00:02:40]} Nxc5 {[%emt 00:00:03] [%clk 00:02:17]} 9. h3 {[%emt 00:00:21] [%clk
00:02:20]} Nfe4 {[%emt 00:00:07] [%clk 00:02:12]} 10. Be5 {[%emt 00:00:27] [%clk
00:01:55]} Nxc3 {[%emt 00:00:04] [%clk 00:02:10]} 11. bxc3 {[%emt 00:00:16]
[%clk 00:01:42]} Nxd3 {[%emt 00:00:17] [%clk 00:01:55]} 12. Bxg7 {[%emt
00:00:18] [%clk 00:01:26]} Kxg7 {[%emt 00:00:10] [%clk 00:01:46]} 13. cxd3
{[%emt 00:00:02] [%clk 00:01:27]} Qa5 {[%emt 00:00:05] [%clk 00:01:42]} 14. Qb3
{[%emt 00:00:03] [%clk 00:01:27]} b6 {[%emt 00:00:18] [%clk 00:01:26]} 15. Rfd1
{[%emt 00:00:26] [%clk 00:01:03]} Ba6 {[%emt 00:00:06] [%clk 00:01:22]} 16. c4
{[%emt 00:00:15] [%clk 00:00:50]} Rfd8 {[%emt 00:00:03] [%clk 00:01:21]} 17.
cxd5 {[%emt 00:00:06] [%clk 00:00:46]} Qxd5 {[%emt 00:00:16] [%clk 00:01:06]}
18. Qb2+ {[%clk 00:00:47]} Kg8 {[%emt 00:00:08] [%clk 00:01:01]} 19. Rac1 {[%emt
00:00:10] [%clk 00:00:39]} Rac8 {[%emt 00:00:10] [%clk 00:00:53]} 20. d4 {[%emt
00:00:04] [%clk 00:00:37]} Bb7 {[%emt 00:00:04] [%clk 00:00:51]} 21. Rxc8 {[%emt
00:00:03] [%clk 00:00:36]} Rxc8 {[%clk 00:00:52]} 22. a3 {[%emt 00:00:06] [%clk
00:00:32]} Qc4 {[%emt 00:00:14] [%clk 00:00:40]} 23. Ne5 {[%emt 00:00:12] [%clk
00:00:22]} Qd5 {[%emt 00:00:09] [%clk 00:00:33]} 24. Nf3 {[%emt 00:00:01] [%clk
00:00:24]} Qc4 {[%clk 00:00:34]} 25. Ne5 {[%clk 00:00:25]} Qc2 {[%emt 00:00:01]
[%clk 00:00:35]} 26. Rd2 {[%emt 00:00:09] [%clk 00:00:18]} Qxb2 {[%emt 00:00:09]
[%clk 00:00:29]} 27. Rxb2 {[%clk 00:00:19]} Rc3 {[%emt 00:00:01] [%clk
00:00:29]} 28. a4 {[%emt 00:00:06] [%clk 00:00:16]} Bd5 {[%emt 00:00:07] [%clk
00:00:24]} 29. a5 {[%emt 00:00:04] [%clk 00:00:14]} f6 {[%emt 00:00:10] [%clk
00:00:16]} 30. Nd7 {[%emt 00:00:04] [%clk 00:00:12]} bxa5 {[%emt 00:00:02] [%clk
00:00:16]} 31. Rb8+ {[%emt 00:00:03] [%clk 00:00:11]} Kg7 {[%emt 00:00:05] [%clk
00:00:13]} 32. Nc5 {[%emt 00:00:02] [%clk 00:00:11]} Rc1+ {[%emt 00:00:05] [%clk
00:00:10]} 33. Kh2 {[%emt 00:00:01] [%clk 00:00:12]} Rc2 {[%clk 00:00:11]} 34.
Kg3 {[%emt 00:00:02] [%clk 00:00:13]} Ra2 {[%emt 00:00:06] [%clk 00:00:07]} 35.
e4 {[%clk 00:00:14]} Bf7 {[%emt 00:00:03] [%clk 00:00:06]} 36. Rb7 {[%clk
00:00:15]} Kf8 {[%emt 00:00:01] [%clk 00:00:07]} 37. Rxa7 {[%emt 00:00:02] [%clk
00:00:16]} Rd2 {[%emt 00:00:02] [%clk 00:00:06]} 38. d5 {[%emt 00:00:02] [%clk
00:00:16]} Rd4 {[%emt 00:00:02] [%clk 00:00:06]} 39. Rxa5 {[%emt 00:00:02] [%clk
00:00:16]} f5 {[%clk 00:00:07]} 40. f3 {[%clk 00:00:17]} fxe4 {[%emt 00:00:01]
[%clk 00:00:08]} 41. fxe4 {[%emt 00:00:01] [%clk 00:00:18]} Rc4 {[%emt 00:00:02]
[%clk 00:00:08]} 42. Kf4 {[%emt 00:00:01] [%clk 00:00:17]} Rc1 {[%emt 00:00:03]
[%clk 00:00:08]} 43. Ke5 {[%emt 00:00:01] [%clk 00:00:18]} Kg7 {[%emt 00:00:04]
[%clk 00:00:07]} 44. Ne6+ {[%emt 00:00:02] [%clk 00:00:18]} Bxe6 {[%emt
00:00:04] [%clk 00:00:05]} 45. Kxe6 {[%clk 00:00:19]} Rc7 {[%emt 00:00:01] [%clk
00:00:06]} 46. e5 {[%emt 00:00:02] [%clk 00:00:19]} Rb7 {[%emt 00:00:01] [%clk
00:00:07]} 47. Ra6 {[%emt 00:00:02] [%clk 00:00:19]} Kf8 {[%emt 00:00:01] [%clk
00:00:07]} 48. Ra8+ {[%emt 00:00:02] [%clk 00:00:19]} Kg7 {[%clk 00:00:09]} 49.
Re8 {[%emt 00:00:01] [%clk 00:00:20]} Rb6+ {[%emt 00:00:02] [%clk 00:00:10]} 50.
d6 {[%clk 00:00:21]} exd6 {[%emt 00:00:03] [%clk 00:00:09]} 51. exd6 {[%emt
00:00:04] [%clk 00:00:22]} 1-0

[Site "Europe Echecs"]

[Event "Championnat d'Europe de Blitz"]
[Date "2024.12.09"]
[White "Brunner, Nicolas"]
[Black "Ciric, Pavle"]
[WhiteElo "2413"]
[BlackElo "2346"]
[Round "11.54"]
[Result "1-0"]
[TimeControl "180+2"]

1. d4 {[%clk 00:03:02]} d5 {[%emt 00:00:01] [%clk 00:03:03]} 2. c4 {[%emt
00:00:01] [%clk 00:03:03]} dxc4 {[%emt 00:00:02] [%clk 00:03:03]} 3. Nf3 {[%emt
00:00:03] [%clk 00:03:02]} Nf6 {[%emt 00:00:02] [%clk 00:03:03]} 4. e3 {[%emt
00:00:01] [%clk 00:03:03]} Bg4 {[%emt 00:00:01] [%clk 00:03:04]} 5. Bxc4 {[%emt
00:00:04] [%clk 00:03:00]} e6 {[%emt 00:00:01] [%clk 00:03:05]} 6. Nc3 {[%emt
00:00:03] [%clk 00:02:59]} a6 {[%emt 00:00:01] [%clk 00:03:06]} 7. h3 {[%emt
00:00:06] [%clk 00:02:55]} Bh5 {[%clk 00:03:07]} 8. g4 {[%emt 00:00:05] [%clk
00:02:52]} Bg6 {[%emt 00:00:01] [%clk 00:03:08]} 9. Ne5 {[%emt 00:00:02] [%clk
00:02:53]} Nbd7 {[%clk 00:03:09]} 10. Nxg6 {[%emt 00:00:02] [%clk 00:02:53]}
hxg6 {[%emt 00:00:01] [%clk 00:03:09]} 11. Bf1 {[%emt 00:00:03] [%clk 00:02:51]}
c5 {[%emt 00:00:04] [%clk 00:03:08]} 12. Bg2 {[%emt 00:00:06] [%clk 00:02:47]}
Qc7 {[%emt 00:00:23] [%clk 00:02:47]} 13. O-O {[%emt 00:00:28] [%clk 00:02:21]}
Bd6 {[%emt 00:00:45]} 14. f4 {[%clk 00:01:50]} O-O {[%emt 00:00:14] [%clk
00:02:25]} 15. d5 {[%emt 00:00:09] [%clk 00:01:44]} exd5 {[%emt 00:00:25] [%clk
00:02:01]} 16. Nxd5 {[%emt 00:00:01] [%clk 00:01:45]} Nxd5 {[%clk 00:02:02]} 17.
Qxd5 {[%emt 00:00:02] [%clk 00:01:45]} Rab8 {[%emt 00:00:09] [%clk 00:01:55]}
18. Rd1 {[%emt 00:00:03] [%clk 00:01:44]} Bxf4 {[%emt 00:00:42] [%clk 00:01:15]}
19. exf4 {[%clk 00:01:45]} Nf6 {[%emt 00:00:01] [%clk 00:01:16]} 20. Qf3 {[%emt
00:00:05] [%clk 00:01:42]} Rfe8 {[%emt 00:00:03] [%clk 00:01:15]} 21. b3 {[%emt
00:00:05] [%clk 00:01:39]} Ne4 {[%emt 00:00:18] [%clk 00:00:59]} 22. Bb2 {[%clk
00:01:40]} b5 {[%emt 00:00:04] [%clk 00:00:57]} 23. Be5 {[%emt 00:00:03] [%clk
00:01:38]} 1-0

[Site "Europe Echecs"]

[Event "Championnat d'Europe de Blitz"]
[Date "2024.12.09"]
[White "Jobava, Baadur"]
[Black "Sarana, Alexey"]
[WhiteElo "2578"]
[BlackElo "2674"]
[Round "12.1"]
[Result "1/2-1/2"]
[TimeControl "180+2"]

1. c4 {[%clk 00:03:02]} Nf6 {[%emt 00:00:02] [%clk 00:03:02]} 2. b3 {[%emt
00:00:02] [%clk 00:03:03]} e6 {[%emt 00:00:06] [%clk 00:02:58]} 3. Bb2 {[%emt
00:00:01] [%clk 00:03:04]} d5 {[%clk 00:02:59]} 4. Nf3 {[%emt 00:00:02] [%clk
00:03:04]} Be7 {[%emt 00:00:01] [%clk 00:03:00]} 5. g3 {[%emt 00:00:03] [%clk
00:03:03]} O-O {[%emt 00:00:02] [%clk 00:02:59]} 6. Bg2 {[%clk 00:03:05]} c5
{[%emt 00:00:01] [%clk 00:03:00]} 7. cxd5 {[%emt 00:00:04] [%clk 00:03:03]} exd5
{[%emt 00:00:02] [%clk 00:03:01]} 8. O-O {[%emt 00:00:02] [%clk 00:03:01]} Nc6
{[%emt 00:00:02] [%clk 00:03:02]} 9. d4 {[%emt 00:00:02] [%clk 00:03:01]} Ne4
{[%emt 00:00:01] [%clk 00:03:03]} 10. dxc5 {[%emt 00:00:29] [%clk 00:02:34]}
Bxc5 {[%emt 00:00:02] [%clk 00:03:03]} 11. Nc3 {[%emt 00:00:06] [%clk 00:02:30]}
Nxc3 {[%emt 00:00:25] [%clk 00:02:40]} 12. Bxc3 {[%emt 00:00:01] [%clk
00:02:31]} d4 {[%emt 00:00:02] [%clk 00:02:40]} 13. Bb2 {[%emt 00:00:01] [%clk
00:02:32]} Bg4 {[%emt 00:00:12] [%clk 00:02:30]} 14. Rc1 {[%emt 00:00:02] [%clk
00:02:32]} Bb6 {[%emt 00:00:02] [%clk 00:02:31]} 15. h3 {[%emt 00:00:26] [%clk
00:02:07]} Bh5 {[%emt 00:00:03] [%clk 00:02:30]} 16. g4 {[%emt 00:00:53] [%clk
00:01:16]} Bg6 {[%emt 00:00:02] [%clk 00:02:30]} 17. Nd2 {[%emt 00:00:01] [%clk
00:01:17]} Re8 {[%emt 00:00:12] [%clk 00:02:20]} 18. Nc4 {[%emt 00:00:04] [%clk
00:01:15]} Bc7 {[%emt 00:00:01] [%clk 00:02:21]} 19. Bxc6 {[%emt 00:00:15] [%clk
00:01:02]} bxc6 {[%emt 00:00:01] [%clk 00:02:22]} 20. Qxd4 {[%emt 00:00:19]
[%clk 00:00:45]} Qxd4 {[%clk 00:02:23]} 21. Bxd4 {[%emt 00:00:01] [%clk
00:00:46]} Rxe2 {[%emt 00:00:01] [%clk 00:02:24]} 22. Rfe1 {[%emt 00:00:14]
[%clk 00:00:34]} Rxa2 {[%emt 00:00:07] [%clk 00:02:19]} 23. Re7 {[%emt 00:00:03]
[%clk 00:00:33]} Bf4 {[%emt 00:00:02] [%clk 00:02:19]} 24. Be3 {[%emt 00:00:01]
[%clk 00:00:34]} Bxe3 {[%emt 00:00:11] [%clk 00:02:10]} 25. Nxe3 {[%emt
00:00:01] [%clk 00:00:35]} Ra6 {[%emt 00:00:24] [%clk 00:01:48]} 26. Rc7 {[%emt
00:00:02] [%clk 00:00:35]} Rb8 {[%emt 00:00:47] [%clk 00:01:03]} 27. R7xc6
{[%emt 00:00:02] [%clk 00:00:35]} Rxc6 {[%emt 00:00:01] [%clk 00:01:04]} 28.
Rxc6 {[%emt 00:00:02] [%clk 00:00:36]} h5 {[%clk 00:01:05]} 29. Ra6 {[%emt
00:00:14] [%clk 00:00:24]} hxg4 {[%emt 00:00:01] [%clk 00:01:06]} 30. hxg4
{[%emt 00:00:02] [%clk 00:00:25]} Rb7 {[%clk 00:01:07]} 31. Kh2 {[%emt 00:00:13]
[%clk 00:00:13]} f6 {[%emt 00:00:01] [%clk 00:01:08]} 32. Kg3 {[%emt 00:00:02]
[%clk 00:00:14]} Bd3 {[%emt 00:00:03] [%clk 00:01:07]} 33. Ra3 {[%emt 00:00:05]
[%clk 00:00:12]} a6 {[%emt 00:00:04] [%clk 00:01:04]} 34. Nc4 {[%emt 00:00:02]
[%clk 00:00:12]} Kh7 {[%emt 00:00:03] [%clk 00:01:03]} 35. Kf3 {[%emt 00:00:02]
[%clk 00:00:12]} Rb4 {[%emt 00:00:04] [%clk 00:01:01]} 36. Kg3 {[%emt 00:00:07]
[%clk 00:00:07]} Be2 {[%emt 00:00:07] [%clk 00:00:57]} 37. f3 {[%emt 00:00:03]
[%clk 00:00:05]} Bd1 {[%emt 00:00:06] [%clk 00:00:53]} 38. Rxa6 {[%emt 00:00:02]
[%clk 00:00:05]} Rxb3 {[%clk 00:00:54]} 39. Nd2 {[%emt 00:00:01] [%clk
00:00:06]} Rd3 {[%clk 00:00:55]} 40. Ra2 {[%emt 00:00:01] [%clk 00:00:07]} g5
{[%emt 00:00:03] [%clk 00:00:53]} 41. Kf2 {[%clk 00:00:08]} Kg6 {[%emt 00:00:02]
[%clk 00:00:54]} 42. Rb2 {[%emt 00:00:01] [%clk 00:00:09]} Kf7 {[%emt 00:00:01]
[%clk 00:00:55]} 43. Rb7+ {[%emt 00:00:02] [%clk 00:00:09]} Ke6 {[%clk
00:00:55]} 44. Rb6+ {[%emt 00:00:01] [%clk 00:00:11]} Ke7 {[%clk 00:00:56]} 45.
Rb7+ {[%clk 00:00:12]} Ke8 {[%emt 00:00:01] [%clk 00:00:57]} 46. Rb2 {[%emt
00:00:01] [%clk 00:00:13]} Kd7 {[%emt 00:00:03] [%clk 00:00:57]} 47. Rb7+ {[%emt
00:00:01] [%clk 00:00:13]} Kc6 {[%emt 00:00:02] [%clk 00:00:57]} 48. Rb2 {[%clk
00:00:14]} Kc7 {[%emt 00:00:05] [%clk 00:00:54]} 49. Ra2 {[%emt 00:00:02] [%clk
00:00:14]} Kb7 {[%emt 00:00:01] [%clk 00:00:55]} 50. Rb2+ {[%emt 00:00:01] [%clk
00:00:16]} Kc6 {[%clk 00:00:56]} 51. Ra2 {[%emt 00:00:01] [%clk 00:00:17]} Kb5
{[%emt 00:00:07] [%clk 00:00:50]} 52. Rb2+ {[%emt 00:00:02] [%clk 00:00:18]} Ka4
{[%emt 00:00:01] [%clk 00:00:50]} 53. Ne4 {[%emt 00:00:10] [%clk 00:00:10]}
Rxf3+ {[%emt 00:00:12] [%clk 00:00:41]} 54. Kg2 {[%clk 00:00:11]} Ka3 {[%emt
00:00:23] [%clk 00:00:20]} 55. Rf2 {[%emt 00:00:02] [%clk 00:00:11]} Rxf2+
{[%emt 00:00:13] [%clk 00:00:09]} 56. Kxf2 {[%emt 00:00:01] [%clk 00:00:12]}
Bxg4 {[%emt 00:00:02] [%clk 00:00:10]} 57. Nxf6 {[%clk 00:00:12]} Bf5 {[%emt
00:00:01] [%clk 00:00:11]} 58. Kg3 {[%emt 00:00:01] [%clk 00:00:13]} g4 {[%clk
00:00:12]} 59. Nxg4 {[%emt 00:00:01] [%clk 00:00:14]} Bxg4 {[%emt 00:00:01]
[%clk 00:00:08]} 1/2-1/2

[Site "Europe Echecs"]

[Event "Championnat d'Europe de Blitz"]
[Date "2024.12.09"]
[White "Pichot, Alan"]
[Black "Van Foreest, Jorden"]
[WhiteElo "2637"]
[BlackElo "2677"]
[Round "12.2"]
[Result "0-1"]
[TimeControl "180+2"]

1. e4 {[%emt 00:02:10] [%clk 00:03:03]} e5 {[%clk 00:03:03]} 2. Nf3 {[%emt
00:00:01] [%clk 00:03:03]} Nc6 {[%emt 00:00:02] [%clk 00:03:03]} 3. Bc4 {[%emt
00:00:01] [%clk 00:03:04]} Nf6 {[%emt 00:00:02] [%clk 00:03:04]} 4. d3 {[%emt
00:00:01] [%clk 00:03:05]} Be7 {[%clk 00:03:05]} 5. O-O {[%emt 00:00:05] [%clk
00:03:02]} O-O {[%emt 00:00:02] [%clk 00:03:05]} 6. Nc3 {[%emt 00:00:02] [%clk
00:03:02]} d6 {[%emt 00:00:02] [%clk 00:03:05]} 7. a3 {[%emt 00:00:02] [%clk
00:03:03]} a5 {[%emt 00:00:12] [%clk 00:02:54]} 8. h3 {[%emt 00:00:04] [%clk
00:03:00]} Be6 {[%emt 00:00:11] [%clk 00:02:46]} 9. Nd5 {[%emt 00:00:06] [%clk
00:02:56]} a4 {[%emt 00:00:04] [%clk 00:02:45]} 10. Ba2 {[%emt 00:00:17] [%clk
00:02:40]} Nd4 {[%emt 00:00:25] [%clk 00:02:21]} 11. Nxe7+ {[%emt 00:00:31]
[%clk 00:02:12]} Qxe7 {[%emt 00:00:02] [%clk 00:02:21]} 12. Nxd4 {[%emt
00:00:02] [%clk 00:02:13]} exd4 {[%emt 00:00:01] [%clk 00:02:21]} 13. Bg5 {[%emt
00:00:13] [%clk 00:01:59]} Bxa2 {[%emt 00:00:12] [%clk 00:02:14]} 14. Rxa2
{[%emt 00:00:01] [%clk 00:02:00]} Qe6 {[%emt 00:00:01] [%clk 00:02:15]} 15. Ra1
{[%emt 00:00:05] [%clk 00:01:57]} Nd7 {[%emt 00:00:09] [%clk 00:02:07]} 16. Qg4
{[%emt 00:00:16] [%clk 00:01:44]} Ra5 {[%emt 00:00:18] [%clk 00:01:52]} 17. Bd2
{[%emt 00:00:09] [%clk 00:01:36]} Rb5 {[%emt 00:00:03] [%clk 00:01:51]} 18. Rab1
{[%emt 00:00:07] [%clk 00:01:31]} Qxg4 {[%emt 00:00:07] [%clk 00:01:46]} 19.
hxg4 {[%clk 00:01:32]} Ra8 {[%emt 00:00:01] [%clk 00:01:47]} 20. Rfc1 {[%emt
00:00:27] [%clk 00:01:08]} Ra6 {[%emt 00:00:01] [%clk 00:01:48]} 21. b4 {[%emt
00:00:01] [%clk 00:01:09]} axb3 {[%emt 00:00:05] [%clk 00:01:45]} 22. cxb3
{[%clk 00:01:10]} Rc5 {[%emt 00:00:16] [%clk 00:01:32]} 23. b4 {[%emt 00:00:20]
[%clk 00:00:52]} Rxc1+ {[%emt 00:00:04] [%clk 00:01:29]} 24. Rxc1 {[%emt
00:00:01] [%clk 00:00:53]} c5 {[%emt 00:00:11] [%clk 00:01:19]} 25. Bf4 {[%emt
00:00:20] [%clk 00:00:35]} f6 {[%emt 00:00:01] [%clk 00:01:20]} 26. Rb1 {[%emt
00:00:11] [%clk 00:00:27]} g5 {[%emt 00:00:21] [%clk 00:01:01]} 27. Bg3 {[%emt
00:00:02] [%clk 00:00:27]} Kf7 {[%emt 00:00:03] [%clk 00:01:00]} 28. bxc5 {[%emt
00:00:06] [%clk 00:00:23]} Nxc5 {[%emt 00:00:02] [%clk 00:01:01]} 29. Rb4 {[%clk
00:00:24]} Rxa3 {[%emt 00:00:04] [%clk 00:00:59]} 30. Bxd6 {[%emt 00:00:02]
[%clk 00:00:25]} Ra1+ {[%emt 00:00:07] [%clk 00:00:53]} 31. Kh2 {[%clk
00:00:26]} Nxd3 {[%emt 00:00:01] [%clk 00:00:54]} 32. Rxb7+ {[%emt 00:00:03]
[%clk 00:00:25]} Ke6 {[%emt 00:00:23] [%clk 00:00:33]} 33. Bg3 {[%emt 00:00:01]
[%clk 00:00:25]} Ne5 {[%emt 00:00:02] [%clk 00:00:34]} 34. Rb6+ {[%emt 00:00:05]
[%clk 00:00:23]} Kd7 {[%emt 00:00:03] [%clk 00:00:32]} 35. f3 {[%emt 00:00:18]
[%clk 00:00:08]} d3 {[%emt 00:00:20] [%clk 00:00:14]} 36. Rb5 {[%clk 00:00:09]}
Ra6 {[%emt 00:00:04] [%clk 00:00:12]} 37. Be1 {[%emt 00:00:02] [%clk 00:00:08]}
Rd6 {[%emt 00:00:01] [%clk 00:00:13]} 38. Bc3 {[%emt 00:00:07] [%clk 00:00:03]}
d2 {[%clk 00:00:14]} 39. Bxd2 {[%emt 00:00:02] [%clk 00:00:04]} Rxd2 {[%clk
00:00:15]} 40. Kg3 {[%emt 00:00:03] [%clk 00:00:03]} Ng6 {[%emt 00:00:01] [%clk
00:00:16]} 41. Rb7+ {[%emt 00:00:01] [%clk 00:00:04]} Ke6 {[%clk 00:00:18]} 42.
Rxh7 {[%emt 00:00:02] [%clk 00:00:05]} Nf4 {[%clk 00:00:19]} 43. Rh2 {[%emt
00:00:01] [%clk 00:00:06]} Ke5 {[%emt 00:00:07]} 0-1

[Site "Europe Echecs"]

[Event "Championnat d'Europe de Blitz"]
[Date "2024.12.09"]
[White "Deac, Bogdan-Daniel"]
[Black "Fedoseev, Vladimir"]
[WhiteElo "2696"]
[BlackElo "2709"]
[Round "12.3"]
[Result "1-0"]
[TimeControl "180+2"]

1. d4 {[%emt 00:00:01] [%clk 00:03:02]} Nf6 {[%emt 00:00:02] [%clk 00:03:02]} 2.
c4 {[%emt 00:00:02] [%clk 00:03:02]} e6 {[%emt 00:00:01] [%clk 00:03:03]} 3. Nc3
{[%emt 00:00:02] [%clk 00:03:02]} d5 {[%emt 00:00:02] [%clk 00:03:03]} 4. Nf3
{[%emt 00:00:02] [%clk 00:03:02]} Nbd7 {[%emt 00:00:18] [%clk 00:02:47]} 5. Qc2
{[%emt 00:00:04] [%clk 00:03:01]} Bb4 {[%emt 00:00:06] [%clk 00:02:43]} 6. g3
{[%emt 00:00:03] [%clk 00:02:59]} dxc4 {[%emt 00:00:11] [%clk 00:02:35]} 7. Bg2
{[%emt 00:00:01] [%clk 00:02:59]} O-O {[%emt 00:00:04] [%clk 00:02:33]} 8. O-O
{[%emt 00:00:06] [%clk 00:02:55]} Rb8 {[%emt 00:00:06] [%clk 00:02:30]} 9. a4
{[%emt 00:00:24] [%clk 00:02:33]} a6 {[%emt 00:00:24] [%clk 00:02:07]} 10. a5
{[%emt 00:00:31] [%clk 00:02:04]} Bxc3 {[%emt 00:00:19] [%clk 00:01:50]} 11.
Qxc3 {[%emt 00:00:07] [%clk 00:01:59]} b5 {[%emt 00:00:01] [%clk 00:01:51]} 12.
axb6 {[%emt 00:00:05] [%clk 00:01:56]} cxb6 {[%emt 00:00:02] [%clk 00:01:51]}
13. Ne5 {[%emt 00:00:46] [%clk 00:01:12]} Bb7 {[%emt 00:00:08] [%clk 00:01:45]}
14. Bxb7 {[%emt 00:00:17] [%clk 00:00:58]} Rxb7 {[%emt 00:00:01] [%clk
00:01:46]} 15. Rxa6 {[%emt 00:00:06] [%clk 00:00:53]} Nxe5 {[%emt 00:00:11]
[%clk 00:01:37]} 16. dxe5 {[%emt 00:00:01] [%clk 00:00:54]} Nd5 {[%emt 00:00:01]
[%clk 00:01:38]} 17. Qxc4 {[%emt 00:00:23] [%clk 00:00:33]} Rc7 {[%emt 00:00:03]
[%clk 00:01:37]} 18. Qa4 {[%emt 00:00:07] [%clk 00:00:28]} Qc8 {[%emt 00:00:10]
[%clk 00:01:29]} 19. Bd2 {[%clk 00:00:29]} Rc2 {[%emt 00:00:05] [%clk 00:01:26]}
20. Ra8 {[%emt 00:00:03] [%clk 00:00:29]} Qc5 {[%emt 00:00:35] [%clk 00:00:52]}
21. Rxf8+ {[%emt 00:00:08] [%clk 00:00:24]} Kxf8 {[%emt 00:00:03] [%clk
00:00:51]} 22. Qa8+ {[%emt 00:00:06] [%clk 00:00:19]} Ke7 {[%emt 00:00:06] [%clk
00:00:48]} 23. Bg5+ {[%emt 00:00:01] [%clk 00:00:20]} f6 {[%emt 00:00:01] [%clk
00:00:49]} 24. exf6+ {[%emt 00:00:01] [%clk 00:00:20]} gxf6 {[%emt 00:00:01]
[%clk 00:00:50]} 25. Bh6 {[%emt 00:00:03] [%clk 00:00:19]} Qc8 {[%emt 00:00:25]
[%clk 00:00:27]} 26. Qxc8 {[%emt 00:00:08] [%clk 00:00:14]} Rxc8 {[%clk
00:00:27]} 27. Ra1 {[%emt 00:00:01] [%clk 00:00:14]} Rc2 {[%emt 00:00:09] [%clk
00:00:20]} 28. e4 {[%emt 00:00:07] [%clk 00:00:10]} Nc7 {[%clk 00:00:21]} 29.
Rc1 {[%emt 00:00:02] [%clk 00:00:10]} Rxc1+ {[%emt 00:00:04] [%clk 00:00:20]}
30. Bxc1 {[%emt 00:00:01] [%clk 00:00:10]} Kd6 {[%emt 00:00:01] [%clk 00:00:21]}
31. Be3 {[%emt 00:00:02] [%clk 00:00:10]} b5 {[%emt 00:00:05] [%clk 00:00:19]}
32. Kf1 {[%emt 00:00:01] [%clk 00:00:10]} f5 {[%emt 00:00:06] [%clk 00:00:16]}
33. exf5 {[%clk 00:00:11]} Nd5 {[%emt 00:00:04] [%clk 00:00:14]} 34. fxe6 {[%emt
00:00:02] [%clk 00:00:12]} Kxe6 {[%clk 00:00:16]} 35. Ke2 {[%clk 00:00:13]} Ke5
{[%emt 00:00:03] [%clk 00:00:15]} 36. f3 {[%emt 00:00:01] [%clk 00:00:14]} Nb4
{[%emt 00:00:01] [%clk 00:00:16]} 37. Bd2 {[%emt 00:00:02] [%clk 00:00:13]} Nc6
{[%emt 00:00:01] [%clk 00:00:17]} 38. Kd3 {[%emt 00:00:04] [%clk 00:00:11]} Kd5
{[%emt 00:00:01] [%clk 00:00:18]} 39. f4 {[%emt 00:00:02] [%clk 00:00:11]} Nd4
{[%emt 00:00:02] [%clk 00:00:19]} 40. Be3 {[%emt 00:00:03] [%clk 00:00:10]} Nf3
{[%emt 00:00:01] [%clk 00:00:20]} 41. h3 {[%emt 00:00:01] [%clk 00:00:10]} Ne1+
{[%emt 00:00:01] [%clk 00:00:21]} 42. Ke2 {[%emt 00:00:02] [%clk 00:00:11]} Nc2
{[%emt 00:00:01] [%clk 00:00:22]} 43. Kd2 {[%emt 00:00:05] [%clk 00:00:08]} Nb4
{[%emt 00:00:02] [%clk 00:00:21]} 44. f5 {[%emt 00:00:05] [%clk 00:00:06]} Ke5
{[%emt 00:00:03] [%clk 00:00:20]} 45. g4 {[%clk 00:00:07]} Nd5 {[%emt 00:00:03]
[%clk 00:00:20]} 46. Kd3 {[%emt 00:00:02] [%clk 00:00:07]} Nb4+ {[%clk
00:00:21]} 47. Ke2 {[%emt 00:00:02] [%clk 00:00:07]} Nd5 {[%emt 00:00:02] [%clk
00:00:21]} 48. Kf3 {[%emt 00:00:01] [%clk 00:00:08]} b4 {[%clk 00:00:23]} 49. b3
{[%emt 00:00:03] [%clk 00:00:08]} h5 {[%emt 00:00:02] [%clk 00:00:22]} 50. Bf2
{[%emt 00:00:03] [%clk 00:00:07]} hxg4+ {[%emt 00:00:01] [%clk 00:00:23]} 51.
hxg4 {[%clk 00:00:09]} Nc3 {[%emt 00:00:06] [%clk 00:00:19]} 52. Bg3+ {[%emt
00:00:03] [%clk 00:00:07]} Kd5 {[%emt 00:00:05] [%clk 00:00:17]} 53. g5 {[%emt
00:00:02] [%clk 00:00:07]} Ne4 {[%clk 00:00:18]} 54. g6 {[%emt 00:00:02] [%clk
00:00:07]} Kd4 {[%emt 00:00:06] [%clk 00:00:14]} 55. Bh4 {[%emt 00:00:03] [%clk
00:00:06]} Nd6 {[%emt 00:00:05] [%clk 00:00:12]} 1-0

[Site "Europe Echecs"]